Cogmind - Beta 14 @@@ ROGUE MODE // 2025.01.07 @ 14:38:42 Player: Andru7428 Result: Destroyed by as-26790 with Assembled Rifle Performance ------------- Evolutions (0) 0 Regions Visited (2) 400 Robots Destroyed (23) 115 Value Destroyed (592) 592 Prototype IDs (2) 40 Alien Tech Used (0) 0 Bonus (0) 0 TOTAL SCORE: 1147 Bonus ------- None Cogmind --------- Core Integrity 0/250 Matter 299/300 Energy 100/100 System Corruption 0% Temperature Cool (0) Movement Core (450) Ox8 Location -10/Mines Parts ------- > --- POWER (1) -------- (None) > --- PROPULSION (2) --- (None) > --- UTILITY (2) ------ Large Storage Unit Seismic Detector > --- WEAPON (2) ------- Improved Light Cannon > --- INVENTORY (15) --- Light Ion Engine Light Treads Improved Heat Sink Large Matter Pod (150) Structural Scanner Light Armor Plating Tractor Beam Makeshift Shrapnel Gun Improved Light Cannon Improved Light Cannon Grenade Launcher Maul Maul Maul Peak State ------------ > --- POWER ------------ Light Ion Engine > --- PROPULSION ------- Aluminum Leg Aluminum Leg > --- UTILITY ---------- Large Storage Unit Seismic Detector > --- WEAPON ----------- Improved Light Cannon Improved Light Cannon > --- INVENTORY -------- Light Ion Engine Light Treads Improved Heat Sink Large Matter Pod Structural Scanner Light Armor Plating Tractor Beam Makeshift Shrapnel Gun Improved Light Cannon Improved Light Cannon Grenade Launcher Maul Maul Maul [Rating: 11] Favorites ----------- Power Light Ion Engine Engine Light Ion Engine Propulsion Light Treads Treads Light Treads Leg Aluminum Leg Utility Seismic Detector Device Seismic Detector Storage Small Storage Unit Weapon Improved Light Cannon Energy Gun Medium Laser Ballistic Gun Assault Rifle Ballistic Cannon Improved Light Cannon Impact Weapon Maul Build | -11 -10 -10 ------- Run | Yrd Mat Min Slots Evolved . | . . . Power . | . . . Propulsion . | . . . Utility . | . . . Weapon . | . . . Parts Attached 24 | 7 10 7 Power 4 | 1 2 1 Engine 4 | 1 2 1 Core . | . . . Reactor . | . . . Propulsion 4 | 2 . 2 Treads 2 | 2 . . Leg 2 | . . 2 Wheel . | . . . Hover . | . . . Flight . | . . . Utility 9 | 2 5 2 Device 7 | 1 4 2 Storage 2 | 1 1 . Processor . | . . . Hackware . | . . . Protection . | . . . Artifact . | . . . Weapon 7 | 2 3 2 Energy Gun 1 | 1 . . Energy Cannon . | . . . Ballistic Gun 2 | 1 1 . Ballistic Cannon 3 | . 2 1 Launcher . | . . . Special Weapon . | . . . Impact Weapon 1 | . . 1 Slashing Weapon . | . . . Piercing Weapon . | . . . Special Melee Weapon . | . . . Unidentified Prototypes . | . . . Parts Lost 6 | . 1 5 Power 2 | . 1 1 Propulsion 3 | . . 3 Utility . | . . . Weapon 1 | . . 1 Highest Loss Streak 4 | . 1 4 To Critical Strikes . | . . . Average Slot Usage (%) 95 | . 97 87 Engine 13 | . 13 14 Treads 25 | . 28 16 Leg 2 | . . 11 Device 9 | . 11 2 Storage 14 | . 14 14 Energy Gun 3 | . 5 . Ballistic Gun 3 | . 5 . Ballistic Cannon 20 | . 17 27 Peak Build Rating 11 | 7 10 11 Average Rating 8 | 4 8 10 On Entrance 5 | . 7 9 Naked Turns . | . . . Heaviest Build 32 | 12 32 32 Greatest Support 40 | 40 40 40 Greatest Overweight (x) 3 | . . 3 Average Overweight (x) . | . . . Largest Inventory Capacity 15 | 8 15 15 Average Capacity 11 | 7 10 15 Most Carried 15 | 8 14 15 Average Carried 10 | 5 9 14 Final Capacity 15 | 8 15 15 Final Carried 14 | 6 14 14 Class Distribution -------------------- 100% | Mutant Dominant Class ---------------- Mutant | -10/Materials Mutant | -10/Mines Resources | -11 -10 -10 ----------- Run | Yrd Mat Min Matter Collected 833 | 274 456 103 Remotely 50 | . . 50 Salvage Created 635 | 41 497 97 Parts 49 | 6 38 5 Haulers Intercepted 2 | . 2 . Recyclers Shooed . | . . . Parts Field Recycled . | . . . Retrieved Matter . | . . . Parts Self-Destructed . | . . . Prevented . | . . . Kills | -11 -10 -10 ------- Run | Yrd Mat Min Combat Hostiles Destroyed 17 | . 13 4 Guns 4 | . 4 . Cannons 13 | . 9 4 Classes Destroyed 7 | 1 5 1 Worker 1 | . 1 . Tunneler 2 | 2 . . Hauler 2 | . 2 . Watcher 2 | . 2 . Swarmer 3 | . 3 . Grunt 13 | . 10 3 Assembled 1 | . . 1 Best Kill Streak 4 | 2 4 2 Combat Bots Only 4 | . 4 2 Max Kills in Single Turn 2 | 1 2 1 Gunslinging . | . . . Exploded . | . . . Melee . | . . . Uniques/NPCs Destroyed . | . . . Combat | -11 -10 -10 -------- Run | Yrd Mat Min Hostile Shots Fired 92 | . 48 44 Missed 24 | . 15 9 Damage Taken 1379 | . 415 964 Core 259 | . 78 181 Absorbed by Shields . | . . . Regen/Repaired (Parts) 17 | . 17 . Core Remaining (%) 100 | 100 . . Volleys Fired 49 | 4 37 8 Largest 2 | 2 2 2 Hottest 78 | 70 78 78 Shots Fired 98 | 8 74 16 Gun 42 | 8 34 . Cannon 56 | . 40 16 Launcher . | . . . Special . | . . . Kinetic 77 | 4 57 16 Thermal 21 | 4 17 . Explosive . | . . . Electromagnetic . | . . . Robot Hit Streak 15 | 5 15 8 Robot Miss Streak 3 | 1 3 2 Penetration Max . | . . . Secondary Targets 1 | . 1 . Max Gunslinging Chain 1 | . 1 . Shots Hit Robots 67 | 7 46 14 Core Hits 30 | 3 24 3 Critical Kills . | . . . Critical Parts Destroyed . | . . . Critical Strikes 8 | . 6 2 Burn 2 | . 2 . Blast 6 | . 4 2 Melee Attacks 2 | . . 2 Impact 2 | . . 2 Slashing . | . . . Piercing . | . . . Sneak Attacks . | . . . Combat Hostiles . | . . . Follow-up Attacks . | . . . Damage Inflicted 1213 | 71 812 330 Guns 408 | 71 337 . Cannons 741 | . 475 266 Explosions . | . . . Melee 64 | . . 64 Ramming . | . . . Kinetic 960 | 34 660 266 Thermal 189 | 37 152 . Explosive . | . . . Electromagnetic . | . . . Impact 64 | . . 64 Slashing . | . . . Piercing . | . . . Highest Corruption . | . . . Average Corruption . | . . . Corruption Purged . | . . . Corruption Blocked . | . . . Overload Shots . | . . . Overflow Damage 17 | . . 17 Projectiles . | . . . Explosions . | . . . Melee 17 | . . 17 Knockbacks 5 | . 2 3 Impact 1 | . . 1 Kinetic 3 | . 2 1 Secondary 1 | . . 1 Self-Inflicted Damage . | . . . Shots . | . . . Rammed . | . . . Targets Rammed 1 | . . 1 Kicked 1 | . . 1 Crushed . | . . . Highest Temperature 135 | 70 87 135 Average Temperature 35 | 30 31 54 Received Heat Transfer 361 | . 258 103 Siege Activations . | . . . Robots Corrupted . | . . . Combat Hostiles . | . . . Parts Fried . | . . . Impact Corruptions 1 | . . 1 Robots Melted . | . . . Combat Hostiles . | . . . Parts Melted . | . . . Heat Transferred 703 | 111 592 . Parts Sabotaged . | . . . Parts Stolen . | . . . Parts Stripped . | . . . Power Chain Reactions . | . . . Alert | -11 -10 -10 ------- Run | Yrd Mat Min Peak Influence 293 | 10 293 141 Initial 51 | . 6 51 Average 103 | 2 107 123 Maximum Alert Level 1 | . 1 . Low Security (%) 96 | 100 94 100 Level 1 3 | . 5 . Level 2 . | . . . Level 3 . | . . . Level 4 . | . . . Level 5 . | . . . High Security . | . . . Max Security . | . . . Squads Dispatched 3 | . 3 . Investigation 3 | . 3 . Extermination . | . . . Reinforcement . | . . . Assault . | . . . Garrison . | . . . Intercept . | . . . Searches Triggered . | . . . Construction Impeded . | . . . Haulers Reinforced . | . . . Active Scanning Responses . | . . . Cargo Convoy Interrupts . | . . . Stealth | -11 -10 -10 --------- Run | Yrd Mat Min Distress Signals 2 | . 2 . Communications Jammed . | . . . Distress Signals . | . . . Times Spotted 48 | . 22 26 Peak Tracking Total 20 | . 4 20 Tactical Retreats 3 | . 3 . Traps | -11 -10 -10 ------- Run | Yrd Mat Min Traps Triggered 1 | . 1 . Indirectly . | . . . Trap Hack Attempts . | . . . Triggered . | . . . Disarmed . | . . . Reprogrammed . | . . . Reused . | . . . Traps Extracted . | . . . Installed . | . . . Triggered . | . . . Machines | -11 -10 -10 ---------- Run | Yrd Mat Min Machines Disabled 3 | . 3 . Max in Single Turn 2 | . 2 . Machines Repaired . | . . . Machines Dismantled . | . . . Machines Sabotaged . | . . . Overloaded Fab Kills . | . . . Hacking | -11 -10 -10 --------- Run | Yrd Mat Min Machines Accessed 8 | . 8 . Terminals 5 | . 5 . Fabricators . | . . . Repair Stations 1 | . 1 . Recycling Units 2 | . 2 . Scanalyzers . | . . . Garrison Access . | . . . Total Hacks 25 | . 25 . Successful 14 | . 14 . Failed 11 | . 11 . Catastrophic 1 | . 1 . Database Lockouts . | . . . Manual 17 | . 17 . Terminals 21 | . 21 . Fabricators . | . . . Repair Stations 2 | . 2 . Recycling Units 2 | . 2 . Scanalyzers . | . . . Garrison Access . | . . . Terminal Hacks 8 | . 8 . Part Schematic 1 | . 1 . Robot Analysis 2 | . 2 . Prototype ID Bank 1 | . 1 . Unreport Threat 1 | . 1 . Locate Traps 3 | . 3 . Fabricator Hacks . | . . . Repair Station Hacks 2 | . 2 . Scan Component 1 | . 1 . Repair 1 | . 1 . Recycling Unit Hacks . | . . . Scanalyzer . | . . . Garrison Access Hacks . | . . . Unauthorized Hacks 4 | . 4 . Terminals 2 | . 2 . Botnet 2 | . 2 . Fabricators . | . . . Repair Stations . | . . . Recycling Units 2 | . 2 . Tunnel 2 | . 2 . Scanalyzers . | . . . Garrison Access . | . . . Data Cores Recovered . | . . . Used . | . . . Hacking Detections 6 | . 6 . Full Trace Events . | . . . Feedback Events . | . . . Feedback Blocked . | . . . Robot Schematics Acquired . | . . . Robots Built . | . . . Authchips . | . . . Time . | . . . Total Robot Build Rating . | . . . Part Schematics Acquired 1 | . 1 . Parts Built . | . . . Authchips . | . . . Time . | . . . Total Part Build Rating . | . . . Parts Repaired 1 | . 1 . Time 26 | . 26 . Parts Recycled . | . . . Recycled Matter . | . . . Retrieved Matter . | . . . Retrieved Components . | . . . Parts Scanalyzed . | . . . Part Schematics Acquired . | . . . Parts Damaged . | . . . Bothacking | -11 -10 -10 ------------ Run | Yrd Mat Min Used RIF Installer . | . . . Robots Hacked . | . . . Non-combat . | . . . Combat . | . . . Robot Hacks Applied . | . . . Relay Couplers Released . | . . . Fabnet Peak Effective % . | . . . Robots Rewired . | . . . Allies Hacked . | . . . Hacks Repelled . | . . . Allies | -11 -10 -10 -------- Run | Yrd Mat Min Total Allies . | . . . Largest Group . | . . . Highest-Rated Group . | . . . Highest-Rated Ally . | . . . Total Orders . | . . . Ally Attacks . | . . . Total Damage . | . . . Kills . | . . . Allies Corrupted . | . . . Allies Melted . | . . . Intel | -11 -10 -10 ------- Run | Yrd Mat Min Robot Analysis Total 2 | . 2 . Derelict Logs Recovered . | . . . Drone Launches . | . . . Drone Recoveries . | . . . Exploration | -11 -10 -10 ------------- Run | Yrd Mat Min Turns Passed 1877 | 137 1338 402 Spaces Moved 980 | 72 720 188 Core 5 | 5 . . Treads 899 | 67 720 112 Legs 76 | . . 76 Wheels . | . . . Hover . | . . . Flight . | . . . Fastest Speed 50 | 50 160 160 Average Speed 161 | 152 160 173 Slowest Speed 330 | 160 160 330 Overloaded Moves . | . . . Propulsion Burnouts . | . . . Robots Hopped . | . . . Cave-ins Triggered . | . . . Exploration Rate (%) 50 | 5 88 59 Regions Visited 2 Branch Regions 1 Pre-discovered Areas 2 | . 2 . Known Exits Taken . | . . . Unknown Exits Taken 2 | 1 1 . Scrap Searched 1 | . . 1 Spaces Dug . | . . . Terrain Destroyed 1 | . 1 . Melee . | . . . Projectile 1 | . 1 . AOE . | . . . Terrain Rammed . | . . . Walls Destroyed . | . . . Machines Disabled . | . . . Actions | -11 -10 -10 --------- Run | Yrd Mat Min Total 1170 | 90 837 243 Wait 72 | . 42 30 Move 978 | 71 719 188 Hop . | . . . Pick Up 27 | 8 15 4 Fast Attach 7 | 5 2 . Attach 8 | 2 3 3 Detach 4 | . 3 1 Swap 9 | . 5 4 Drop 13 | . 11 2 Fire 49 | 4 37 8 Melee 2 | . . 2 Ram . | . . . Kick 1 | . . 1 Crush . | . . . Escape Stasis . | . . . Rewire . | . . . Trap . | . . . Miscellaneous . | . . . Route ------- -11/Scrapyard -10/Materials (discovered 4 exits: [*Mat x3] / [*Min]) -10/Mines (discovered 2 exits: [*Mat x2]) History --------- Turn | Location | Event 9 | -11/Scrapyard | Discovered new exit (range 13) 138 | -11/Scrapyard | Entered Materials 309 | -10/Materials | Build established: Mutant 751 | -10/Materials | Repaired Seismic Detector 863 | -10/Materials | Discovered new exit (range 7) 916 | -10/Materials | Discovered new exit (range 14) 1230 | -10/Materials | Discovered new exit (range 4) 1344 | -10/Materials | Discovered new exit (range 13) 1476 | -10/Materials | Entered Mines 1566 | -10/Mines | Discovered new exit (range 6) 1632 | -10/Mines | A weapon hastily lodged in a ceiling crevice suddenly fell to the ground 1711 | -10/Mines | Core integrity fell below 50% 1729 | -10/Mines | Discovered new exit (range 11) 1841 | -10/Mines | Assembled infested the area 1875 | -10/Mines | Core integrity fell below 20% 1878 | -10/Mines | Destroyed by as-26790 with Assembled Rifle Last Messages --------------- 01872_ as-26858 destroyed. 01872_ as-37225 destroyed. 01872_ as-00214 destroyed. 01872_ as-92705 destroyed. 01874_ D-53 Grenadier knocked back. 01874_ as-57081 destroyed. 01874_ as-27831 destroyed. 01874_ as-36799 destroyed. 01875_ Lgt. Ion Engine destroyed. 01875_ Imp. Light Cannon destroyed. 01875_ as-74879 destroyed. 01875_ as-53791 destroyed. 01875_ as-55822 destroyed. 01875_ as-50315 destroyed. 01876_ as-21475 destroyed. 01877_ as-18630 destroyed. 01877_ as-33154 destroyed. 01878_ The unstable cave ceiling collapses. 01878_ Aluminum Leg destroyed. 01878_ D-53 Grenadier Imp. Light Armor Plating severed. Map ----- +----------------------------------------------------+ | | | | | | | | | | | | | | | | | | | | | | | | | | | ??????????????????????????????????? | | ??????????????????????????????????? | | ??????????????????????????????????? | | ??????????????????????????????????? | | ??????????????????????????????????? | | ??????????????????????????????????? | | ??????????????????????????????????? | | ????????????##????????????????????? | | ??????###### ##???????????#####???? | | ??????# ##?????????## ###?? | | ?????## ###????#### ### | | ?????# ###### | | ????# @ d ## | | ????# # ad % ### | | ???# ##### """ | | ???## #???# """ | | ???# #???# """ ### | | ???## ## a###???## #?? | | ????### ??#a ??????## ##?? | | ??????# #?? ??????#### #??? | | ??????# ??? #????????## #??? | | ?????? ??? #?????????## #??? | | ????? ??? ??????????# ##??? | | ????? ??? ?????????# #???? | | ????##